fUST/lending_fUST_20250723
["ID","MTS","AMOUNT","RATE_DAILY","PERIOD"]
[374317068,1753273840786,-460.0,0.00019178,2]
[374317070,1753273840795,-460.0,0.00019178,2]
[374317072,1753273840804,-460.0,0.00019178,2]
[374317074,1753273840814,-460.0,0.00019178,2]
[374317076,1753273840823,-460.0,0.00019178,2]
[374317078,1753273840833,-4209.98,0.00019178,2]
[374317080,1753273840842,-460.0,0.00019178,2]
[374317082,1753273840850,-460.0,0.00019178,2]
[374317084,1753273840860,-460.0,0.00019178,2]
[374317086,1753273840874,-460.0,0.00019178,2]
[374317088,1753273840883,-460.0,0.00019178,2]
[374317090,1753273840893,-460.0,0.00019178,2]
[374317092,1753273840904,-460.0,0.00019178,2]
[374317094,1753273840914,-460.0,0.00019178,2]
[374317096,1753273840923,-460.0,0.00019178,2]
[374317098,1753273840933,-460.0,0.00019178,2]
[374317100,1753273840942,-460.0,0.00019178,2]
[374317102,1753273840952,-460.0,0.00019178,2]
[374317104,1753273840961,-336.67,0.00019178,2]
[374317106,1753273840972,-713.1,0.00019178,2]
[374317108,1753273840981,-509.11,0.00019178,2]
[374317110,1753273840990,-151.0,0.00019178,2]
[374317112,1753273840999,-460.0,0.00019178,2]
[374317114,1753273841008,-151.0,0.00019178,2]
[374317116,1753273841018,-626.74,0.00019178,2]
[374317118,1753273841028,-249.56249009,0.00019178,2]
[374317120,1753273841038,-460.0,0.00019178,2]
[374317122,1753273841048,-500.0,0.00019178,2]
[374317124,1753273841057,-151.58359639,0.00019178,2]
[374317125,1753273841067,-178.59315011,0.00019178,2]
[374317127,1753273841076,-151.0,0.00019178,2]
[374317129,1753273841085,-460.0,0.00019178,2]
[374317131,1753273841095,-550.2,0.00019178,2]
[374317133,1753273841105,-151.0,0.00019178,2]
[374317135,1753273841114,-500.0,0.00019178,2]
[374317137,1753273841123,-463.44080033,0.00019178,2]
[374317139,1753273841137,-2493.34,0.00019178,2]
[374317141,1753273841146,-460.0,0.00019178,2]
[374317142,1753273841156,-460.0,0.00019178,2]
[374317144,1753273841166,-460.0,0.00019178,2]
[374317147,1753273841176,-430.0,0.00019178,2]
[374317148,1753273841186,-460.0,0.00019178,2]
[374317150,1753273841195,-460.0,0.00019178,2]
[374317152,1753273841204,-686.89,0.00019178,2]
[374317154,1753273841214,-460.0,0.00019178,2]
[374317157,1753273841224,-588.08,0.00019178,2]
[374317159,1753273841233,-460.0,0.00019178,2]
[374317161,1753273841242,-576.74,0.00019178,2]
[374317164,1753273841256,-460.0,0.00019178,2]
[374317166,1753273841266,-519.84,0.00019178,2]
[374317168,1753273841275,-460.0,0.00019178,2]
[374317170,1753273841285,-460.0,0.00019178,2]
[374317172,1753273841294,-460.0,0.00019178,2]
[374317174,1753273841304,-460.0,0.00019178,2]
[374317176,1753273841314,-3644.9,0.00019178,2]
[374317178,1753273841324,-460.0,0.00019178,2]
[374317180,1753273841333,-460.0,0.00019178,2]
[374317182,1753273841343,-460.0,0.00019178,2]
[374317184,1753273841353,-461.5182839,0.00019178,2]
[374317186,1753273841362,-496.79,0.00019178,2]
[374317188,1753273841371,-460.0,0.00019178,2]
[374317190,1753273841382,-460.0,0.00019178,2]
[374317192,1753273841391,-460.0,0.00019178,2]
[374317194,1753273841401,-460.0,0.00019178,2]
[374317196,1753273841411,-727.6,0.00019178,2]
[374317198,1753273841420,-460.0,0.00019178,2]
[374317200,1753273841430,-1055.41,0.00019178,2]
[374317202,1753273841440,-460.0,0.00019178,2]
[374317204,1753273841450,-460.0,0.00019178,2]
[374317206,1753273841461,-175.19404414,0.00019178,2]
[374317208,1753273841471,-460.0,0.00019178,2]
[374317210,1753273841480,-460.0,0.00019178,2]
[374317212,1753273841490,-460.0,0.00019178,2]
[374317214,1753273841499,-460.0,0.00019178,2]
[374317216,1753273841509,-1183.71,0.00019178,2]
[374317218,1753273841519,-460.0,0.00019178,2]
[374317220,1753273841529,-460.0,0.00019178,2]
[374317221,1753273841539,-460.0,0.00019178,2]
[374317223,1753273841548,-460.0,0.00019178,2]
[374317225,1753273841558,-460.0,0.00019178,2]
[374317227,1753273841567,-460.0,0.00019178,2]
[374317229,1753273841576,-460.0,0.00019178,2]
[374317231,1753273841586,-3408.17,0.00019178,2]
[374317233,1753273841595,-460.0,0.00019178,2]
[374317235,1753273841605,-460.0,0.00019178,2]
[374317237,1753273841614,-460.0,0.00019178,2]
[374317239,1753273841623,-460.0,0.00019178,2]
[374317241,1753273841633,-460.0,0.00019178,2]
[374317243,1753273841642,-460.0,0.00019178,2]
[374317246,1753273841652,-460.0,0.00019178,2]
[374317248,1753273841661,-460.0,0.00019178,2]
[374317250,1753273841672,-460.0,0.00019178,2]
[374317251,1753273841681,-703.26,0.00019178,2]
[374317253,1753273841691,-460.0,0.00019178,2]
[374317255,1753273841701,-460.0,0.00019178,2]
[374317257,1753273841710,-460.0,0.00019178,2]
[374317259,1753273841719,-460.0,0.00019178,2]
[374317262,1753273841728,-460.0,0.00019178,2]
[374317264,1753273841738,-460.0,0.00019178,2]
[374317266,1753273841748,-460.0,0.00019178,2]
[374317268,1753273841759,-460.0,0.00019178,2]
[374317270,1753273841772,-460.0,0.00019178,2]
[374317272,1753273841782,-460.0,0.00019178,2]
[374317275,1753273841791,-460.0,0.00019178,2]
[374317277,1753273841801,-460.0,0.00019178,2]
[374317278,1753273841811,-460.0,0.00019178,2]
[374317281,1753273841820,-460.0,0.00019178,2]
[374317283,1753273841830,-1086.09,0.00019178,2]
[374317285,1753273841839,-481.72036995,0.00019178,2]
[374317287,1753273841849,-460.0,0.00019178,2]
[374317289,1753273841858,-460.0,0.00019178,2]
[374317291,1753273841871,-420.0,0.00019178,2]
[374317293,1753273841880,-460.0,0.00019178,2]
[374317295,1753273841890,-500.0,0.00019178,2]
[374317296,1753273841899,-151.0,0.00019178,2]
[374317298,1753273841910,-973.04,0.00019178,2]
[374317301,1753273841920,-802.0,0.00019178,2]
[374317302,1753273841929,-151.0,0.00019178,2]
[374317304,1753273841940,-460.0,0.00019178,2]
[374317306,1753273841951,-460.0,0.00019178,2]
[374317308,1753273841963,-237.09,0.00019178,2]
[374317310,1753273841973,-151.0,0.00019178,2]
[374317312,1753273841983,-500.0,0.00019178,2]
[374317314,1753273841992,-151.0,0.00019178,2]
[374317316,1753273842002,-460.0,0.00019178,2]
[374317318,1753273842011,-151.0,0.00019178,2]
[374317320,1753273842021,-460.0,0.00019178,2]
[374317323,1753273842030,-460.0,0.00019178,2]
[374317324,1753273842043,-460.0,0.00019178,2]
[374317327,1753273842053,-151.0,0.00019178,2]
[374317329,1753273842063,-500.0,0.00019178,2]
[374317331,1753273842073,-460.0,0.00019178,2]
[374317333,1753273842082,-463.99569036,0.00019178,2]
[374317335,1753273842092,-155.3752953,0.00019178,2]
[374317337,1753273842101,-248.592503,0.00019178,2]
[374317339,1753273842110,-500.0,0.00019178,2]
[374317341,1753273842120,-5000.0,0.00019178,2]
[374317343,1753273842130,-3435.77922592,0.00019226,2]
[374317345,1753273842139,-151.0,0.000193,2]
[374317347,1753273842149,-150.0,0.00019405,2]
[374317349,1753273842159,-179.82017982,0.00019439,2]
[374317351,1753273842168,-1260.0,0.00019452,2]
[374317353,1753273842179,-151.0,0.00019452,2]
[374317355,1753273842189,-151.0,0.00019452,2]
[374317357,1753273842199,-151.92937431,0.00019452,2]
[374317359,1753273842208,-500.0,0.00019452,2]
[374317361,1753273842218,-151.25419334,0.00019452,2]
[374317363,1753273842227,-199.67216678,0.00019452,2]
[374317365,1753273842237,-277.76240389,0.00019452,2]
[374317367,1753273842247,-151.0,0.00019452,2]
[374317369,1753273842256,-500.0,0.00019452,2]
[374317371,1753273842265,-151.0,0.00019452,2]
[374317373,1753273842275,-151.0,0.00019452,2]
[374317375,1753273842284,-151.0,0.00019452,2]
[374317377,1753273842294,-500.0,0.00019452,2]
[374317379,1753273842304,-151.0,0.00019452,2]
[374317381,1753273842314,-151.0,0.00019452,2]
[374317383,1753273842323,-500.0,0.00019452,2]
[374317385,1753273842332,-500.0,0.00019452,2]
[374317387,1753273842342,-151.0,0.00019452,2]
[374317389,1753273842351,-802.0,0.00019452,2]
[374317391,1753273842361,-151.0,0.00019452,2]
[374317392,1753273842370,-151.0,0.00019452,2]
[374317394,1753273842380,-151.0,0.00019452,2]
[374317397,1753273842389,-151.0,0.00019452,2]
[374317399,1753273842399,-500.0,0.00019452,2]
[374317400,1753273842409,-460.0,0.00019452,2]
[374317403,1753273842418,-9850.76,0.00019452,2]
[374317404,1753273842427,-1357.95,0.00019452,2]
[374317406,1753273842438,-460.0,0.00019452,2]
[374317409,1753273842447,-4334.0,0.00019452,2]
[374317411,1753273842457,-3683.06,0.00019452,2]
[374317412,1753273842466,-460.0,0.00019452,2]
[374317415,1753273842476,-460.0,0.00019452,2]
[374317416,1753273842486,-363.23574977,0.00019452,2]
[374317418,1753273842495,-460.0,0.00019452,2]
[374317420,1753273842504,-460.0,0.00019452,2]
[374317422,1753273842514,-460.0,0.00019452,2]
[374317424,1753273842523,-460.0,0.00019452,2]
[374317426,1753273842532,-2078.02,0.00019452,2]
[374317428,1753273842542,-460.0,0.00019452,2]
[374317430,1753273842552,-460.0,0.00019452,2]
[374317433,1753273842561,-2180.38,0.00019452,2]
[374317435,1753273842570,-460.0,0.00019452,2]
[374317437,1753273842579,-460.0,0.00019452,2]
[374317438,1753273842589,-2198.41,0.00019452,2]
[374317441,1753273842599,-460.0,0.00019452,2]
[374317443,1753273842608,-460.0,0.00019452,2]
[374317445,1753273842617,-462.1757024,0.00019452,2]
[374317447,1753273842627,-460.0,0.00019452,2]
[374317449,1753273842636,-460.0,0.00019452,2]
[374317450,1753273842645,-460.0,0.00019452,2]
[374317453,1753273842657,-460.0,0.00019452,2]
[374317455,1753273842666,-460.0,0.00019452,2]
[374317457,1753273842676,-460.0,0.00019452,2]
[374317459,1753273842686,-7332.29,0.00019452,2]
[374317461,1753273842696,-154.65473086,0.00019452,2]
[374317463,1753273842705,-460.0,0.00019452,2]
[374317465,1753273842715,-460.0,0.00019452,2]
[374317467,1753273842724,-605.13145932,0.00019452,2]
[374317469,1753273842734,-333.36683095,0.00019452,2]
[374317471,1753273842744,-460.0,0.00019452,2]
[374317472,1753273842761,-460.0,0.00019452,2]
[374317475,1753273842779,-460.0,0.00019452,2]
[374317477,1753273842789,-460.0,0.00019452,2]
[374317479,1753273842799,-460.0,0.00019452,2]
[374317481,1753273842809,-460.0,0.00019452,2]
[374317482,1753273842818,-460.0,0.00019452,2]
[374317484,1753273842828,-460.0,0.00019452,2]
[374317486,1753273842839,-460.0,0.00019452,2]
[374317488,1753273842861,-460.0,0.00019452,2]
[374317490,1753273842878,-460.0,0.00019452,2]
[374317493,1753273842890,-460.0,0.00019452,2]
[374317495,1753273842900,-460.0,0.00019452,2]
[374317497,1753273842911,-556.24,0.00019452,2]
[374317499,1753273842922,-561.73,0.00019452,2]
[374317501,1753273842932,-460.0,0.00019452,2]
[374317503,1753273842942,-460.0,0.00019452,2]
[374317505,1753273842952,-460.0,0.00019452,2]
[374317506,1753273842962,-534.43300934,0.00019452,2]
[374317509,1753273842972,-466.41807707,0.00019452,2]
[374317511,1753273842982,-460.0,0.00019452,2]
[374317513,1753273842991,-460.0,0.00019452,2]
[374317515,1753273843000,-460.0,0.00019452,2]
[374317517,1753273843009,-460.0,0.00019452,2]
[374317519,1753273843019,-460.0,0.00019452,2]
[374317521,1753273843028,-460.0,0.00019452,2]
[374317523,1753273843038,-463.80601612,0.00019452,2]
[374317525,1753273843047,-460.0,0.00019452,2]
[374317528,1753273843056,-482.76717015,0.00019452,2]
[374317529,1753273843066,-660.92,0.00019452,2]
[374317532,1753273843075,-460.0,0.00019452,2]
[374317534,1753273843085,-460.0,0.00019452,2]
[374317536,1753273843095,-460.0,0.00019452,2]
[374317538,1753273843104,-460.0,0.00019452,2]
[374317540,1753273843113,-460.0,0.00019452,2]
[374317542,1753273843123,-460.0,0.00019452,2]
[374317545,1753273843133,-460.0,0.00019452,2]
[374317547,1753273843143,-1574.89,0.00019452,2]
[374317548,1753273843152,-460.0,0.00019452,2]
[374317550,1753273843162,-460.0,0.00019452,2]
[374317552,1753273843171,-460.0,0.00019452,2]
[374317555,1753273843181,-532.39,0.00019452,2]
[374317556,1753273843191,-2605.37,0.00019452,2]
[374317558,1753273843200,-460.0,0.00019452,2]
[374317560,1753273843210,-657.49,0.00019452,2]
[374317562,1753273843219,-460.0,0.00019452,2]
[374317565,1753273843229,-460.0,0.00019452,2]
[374317566,1753273843238,-460.0,0.00019452,2]
[374317569,1753273843248,-460.0,0.00019452,2]
[374317571,1753273843258,-460.0,0.00019452,2]
[374317572,1753273843267,-460.0,0.00019452,2]
[374317574,1753273843277,-460.0,0.00019452,2]
[374317577,1753273843287,-460.0,0.00019452,2]
[374317580,1753273843297,-4209.98,0.00019452,2]
[374317582,1753273843306,-460.0,0.00019452,2]
[374317584,1753273843315,-460.0,0.00019452,2]
[374317586,1753273843324,-460.0,0.00019452,2]
[374317588,1753273843334,-460.0,0.00019452,2]
[374317590,1753273843343,-460.0,0.00019452,2]
[374317592,1753273843353,-460.0,0.00019452,2]
[374317595,1753273843362,-460.0,0.00019452,2]
[374317597,1753273843371,-460.0,0.00019452,2]
[374317599,1753273843381,-460.0,0.00019452,2]
[374317601,1753273843390,-460.0,0.00019452,2]
[374317603,1753273843399,-713.1,0.00019452,2]
[374317605,1753273843409,-509.11,0.00019452,2]
[374317607,1753273843418,-460.0,0.00019452,2]
[374317609,1753273843428,-626.74,0.00019452,2]
[374317610,1753273843437,-460.0,0.00019452,2]
[374317612,1753273843447,-460.0,0.00019452,2]
[374317614,1753273843456,-550.2,0.00019452,2]
[374317616,1753273843465,-2493.34,0.00019452,2]
[374317618,1753273843475,-460.0,0.00019452,2]
[374317620,1753273843484,-460.0,0.00019452,2]
[374317622,1753273843494,-460.0,0.00019452,2]
[374317624,1753273843503,-686.89,0.00019452,2]
[374317626,1753273843513,-460.0,0.00019452,2]
[374317628,1753273843522,-588.08,0.00019452,2]
[374317630,1753273843532,-576.74,0.00019452,2]
[374317632,1753273843541,-192.9131683,0.00019452,2]
[374317634,1753273843551,-519.84,0.00019452,2]
[374317636,1753273843561,-460.0,0.00019452,2]
[374317638,1753273843571,-460.0,0.00019452,2]
[374317640,1753273843581,-460.0,0.00019452,2]
[374317642,1753273843591,-3644.9,0.00019452,2]
[374317644,1753273843601,-460.0,0.00019452,2]
[374317658,1753273843713,-460.0,0.00019452,2]
[374317661,1753273843743,-460.0,0.00019452,2]
[374317663,1753273843752,-496.79,0.00019452,2]
[374317665,1753273843763,-460.0,0.00019452,2]
[374317667,1753273843772,-460.0,0.00019452,2]
[374317669,1753273843782,-460.0,0.00019452,2]
[374317671,1753273843792,-460.0,0.00019452,2]
[374317673,1753273843802,-727.6,0.00019452,2]
[374317675,1753273843811,-460.0,0.00019452,2]
[374317677,1753273843821,-1055.41,0.00019452,2]
[374317679,1753273843830,-460.0,0.00019452,2]
[374317681,1753273843840,-460.0,0.00019452,2]
[374317683,1753273843850,-460.0,0.00019452,2]
[374317685,1753273843859,-460.0,0.00019452,2]
[374317687,1753273843871,-460.0,0.00019452,2]
[374317689,1753273843881,-460.0,0.00019452,2]
[374317691,1753273843891,-1183.71,0.00019452,2]
[374317693,1753273843901,-460.0,0.00019452,2]
[374317695,1753273843911,-460.0,0.00019452,2]
[374317697,1753273843921,-460.0,0.00019452,2]
[374317699,1753273843930,-460.0,0.00019452,2]
[374317701,1753273843940,-460.0,0.00019452,2]
[374317703,1753273843951,-460.0,0.00019452,2]
[374317705,1753273843961,-3408.17,0.00019452,2]
[374317707,1753273843972,-460.0,0.00019452,2]
[374317709,1753273843982,-463.35827673,0.00019452,2]
[374317711,1753273843991,-460.0,0.00019452,2]
[374317712,1753273844001,-460.0,0.00019452,2]
[374317713,1753273844011,-460.0,0.00019452,2]
[374317714,1753273844022,-460.0,0.00019452,2]
[374317715,1753273844031,-460.0,0.00019452,2]
[374317716,1753273844041,-460.0,0.00019452,2]
[374317717,1753273844051,-703.26,0.00019452,2]
[374317718,1753273844060,-460.0,0.00019452,2]
[374317719,1753273844070,-460.0,0.00019452,2]
[374317720,1753273844080,-460.0,0.00019452,2]
[374317721,1753273844090,-460.0,0.00019452,2]
[374317722,1753273844100,-460.0,0.00019452,2]
[374317723,1753273844109,-460.0,0.00019452,2]
[374317724,1753273844118,-460.0,0.00019452,2]
[374317725,1753273844127,-460.0,0.00019452,2]
[374317726,1753273844137,-460.0,0.00019452,2]
[374317727,1753273844147,-460.0,0.00019452,2]
[374317728,1753273844157,-1086.09,0.00019452,2]
[374317729,1753273844167,-460.0,0.00019452,2]
[374317730,1753273844176,-973.04,0.00019452,2]
[374317731,1753273844186,-460.0,0.00019452,2]
[374317732,1753273844196,-460.0,0.00019452,2]
[374317733,1753273844205,-500.0,0.00019452,2]
[374317734,1753273844216,-151.0,0.000195,2]
[374317735,1753273844225,-169.23383675,0.00019562,3]
[374317736,1753273844235,-151.0,0.000196,2]
[374317739,1753273844246,-800.0,0.0001962,2]
[374317741,1753273844256,-500.0,0.00019658,2]
[374317744,1753273844265,-500.93391383,0.00019658,2]
[374317747,1753273844275,-500.0,0.00019658,2]
[374317750,1753273844285,-3435.77922592,0.00019685,2]
[374317752,1753273844295,-347.73201029,0.00019721,2]
[374317754,1753273844305,-327.78870891,0.00019725,2]
[374317756,1753273844315,-176.4865867,0.00019725,2]
[374317758,1753273844325,-1260.0,0.00019726,2]
[374317760,1753273844335,-246.04954172,0.00019726,2]
[374317762,1753273844345,-292.0,0.00019726,2]
[374317764,1753273844354,-151.0,0.00019726,2]
[374317766,1753273844364,-500.0,0.00019726,2]
[374317768,1753273844374,-198.0,0.00019726,2]
[374317770,1753273844384,-151.0,0.00019726,2]
[374317772,1753273844393,-151.0,0.00019726,2]
[374317774,1753273844403,-500.0,0.00019726,2]
[374317776,1753273844412,-255.55352173,0.00019726,2]
[374317778,1753273844422,-152.52494706,0.00019726,2]
[374317780,1753273844432,-266.4365031,0.00019726,2]
[374317782,1753273844441,-500.0,0.00019726,2]
[374317784,1753273844451,-151.0,0.00019726,2]
[374317786,1753273844460,-802.0,0.00019726,2]
[374317788,1753273844470,-171.98864679,0.00019726,2]
[374317790,1753273844480,-151.0,0.00019726,2]
[374317792,1753273844490,-152.33024982,0.00019726,2]
[374317794,1753273844499,-500.0,0.00019726,2]
[374317796,1753273844510,-460.0,0.00019726,2]
[374317798,1753273844520,-9850.76,0.00019726,2]
[374317800,1753273844529,-1357.95,0.00019726,2]
[374317802,1753273844539,-460.0,0.00019726,2]
[374317804,1753273844549,-4334.0,0.00019726,2]
[374317806,1753273844558,-3683.06,0.00019726,2]
[374317808,1753273844568,-460.0,0.00019726,2]
[374317810,1753273844578,-460.0,0.00019726,2]
[374317812,1753273844587,-460.0,0.00019726,2]
[374317814,1753273844597,-460.0,0.00019726,2]
[374317816,1753273844608,-2078.02,0.00019726,2]
[374317818,1753273844618,-460.0,0.00019726,2]
[374317820,1753273844627,-460.0,0.00019726,2]
[374317822,1753273844637,-2180.38,0.00019726,2]
[374317824,1753273844646,-460.0,0.00019726,2]
[374317826,1753273844655,-460.0,0.00019726,2]
[374317828,1753273844665,-2198.41,0.00019726,2]
[374317830,1753273844675,-460.0,0.00019726,2]
[374317832,1753273844684,-460.0,0.00019726,2]
[374317834,1753273844694,-602.0,0.00019726,2]
[374317836,1753273844703,-460.0,0.00019726,2]
[374317838,1753273844713,-291.7981558,0.00019726,2]
[374317840,1753273844723,-460.0,0.00019726,2]
[374317842,1753273844732,-460.0,0.00019726,2]
[374317844,1753273844741,-460.0,0.00019726,2]
[374317846,1753273844751,-7332.29,0.00019726,2]
[374317848,1753273844760,-460.0,0.00019726,2]
[374317850,1753273844771,-460.0,0.00019726,2]
[374317852,1753273844780,-460.0,0.00019726,2]
[374317854,1753273844789,-460.0,0.00019726,2]
[374317856,1753273844799,-460.0,0.00019726,2]
[374317858,1753273844808,-460.0,0.00019726,2]
[374317860,1753273844818,-460.0,0.00019726,2]
[374317862,1753273844827,-460.0,0.00019726,2]
[374317864,1753273844837,-460.0,0.00019726,2]
[374317866,1753273844846,-460.0,0.00019726,2]
[374317868,1753273844856,-460.0,0.00019726,2]
[374317870,1753273844867,-460.0,0.00019726,2]
[374317872,1753273844878,-556.24,0.00019726,2]
[374317873,1753273844888,-561.73,0.00019726,2]
[374317875,1753273844897,-460.0,0.00019726,2]
[374317878,1753273844907,-460.0,0.00019726,2]
[374317879,1753273844918,-460.0,0.00019726,2]
[374317881,1753273844927,-460.0,0.00019726,2]
[374317883,1753273844936,-460.0,0.00019726,2]
[374317885,1753273844947,-461.69,0.00019726,2]
[374317887,1753273844957,-460.0,0.00019726,2]
[374317889,1753273844966,-460.0,0.00019726,2]
[374317891,1753273844976,-206.14702574,0.00019726,2]
[374317893,1753273844986,-660.92,0.00019726,2]
[374317895,1753273844995,-460.0,0.00019726,2]
[374317897,1753273845004,-460.0,0.00019726,2]
[374317899,1753273845014,-460.0,0.00019726,2]
[374317901,1753273845024,-1574.89,0.00019726,2]
[374317903,1753273845033,-561.09862588,0.00019726,2]
[374317905,1753273845043,-460.0,0.00019726,2]
[374317907,1753273845052,-532.39,0.00019726,2]
[374317909,1753273845062,-2605.37,0.00019726,2]
[374317911,1753273845071,-657.49,0.00019726,2]
[374317913,1753273845081,-460.0,0.00019726,2]
[374317915,1753273845091,-460.0,0.00019726,2]
[374317917,1753273845101,-460.0,0.00019726,2]
[374317919,1753273845110,-460.0,0.00019726,2]
[374317921,1753273845120,-460.0,0.00019726,2]
[374317923,1753273845129,-460.0,0.00019726,2]
[374317925,1753273845139,-4209.98,0.00019726,2]
[374317927,1753273845149,-460.0,0.00019726,2]
[374317929,1753273845158,-460.0,0.00019726,2]
[374317931,1753273845168,-460.0,0.00019726,2]
[374317933,1753273845178,-460.0,0.00019726,2]
[374317935,1753273845187,-460.0,0.00019726,2]
[374317937,1753273845196,-460.0,0.00019726,2]
[374317939,1753273845206,-460.0,0.00019726,2]
[374317942,1753273845217,-460.0,0.00019726,2]
[374317944,1753273845226,-460.0,0.00019726,2]
[374317946,1753273845235,-713.1,0.00019726,2]
[374317948,1753273845245,-509.11,0.00019726,2]
[374317949,1753273845254,-460.0,0.00019726,2]
[374317951,1753273845264,-626.74,0.00019726,2]
[374317954,1753273845274,-460.0,0.00019726,2]
[374317955,1753273845283,-237.26668909,0.00019726,2]
[374317957,1753273845292,-550.2,0.00019726,2]
[374317959,1753273845302,-2493.34,0.00019726,2]
[374317961,1753273845312,-460.0,0.00019726,2]
[374317963,1753273845321,-460.0,0.00019726,2]
[374317965,1753273845331,-460.0,0.00019726,2]
[374317967,1753273845340,-460.0,0.00019726,2]
[374317969,1753273845349,-686.89,0.00019726,2]
[374317971,1753273845359,-588.08,0.00019726,2]
[374317973,1753273845368,-576.74,0.00019726,2]
[374317975,1753273845378,-519.84,0.00019726,2]
[374317977,1753273845388,-460.0,0.00019726,2]
[374317979,1753273845397,-460.0,0.00019726,2]
[374317981,1753273845409,-460.0,0.00019726,2]
[374317983,1753273845419,-3644.9,0.00019726,2]
[374317985,1753273845429,-460.0,0.00019726,2]
[374317987,1753273845438,-460.0,0.00019726,2]
[374317989,1753273845448,-496.79,0.00019726,2]
[374317991,1753273845458,-460.0,0.00019726,2]
[374317993,1753273845467,-460.0,0.00019726,2]
[374317995,1753273845477,-460.0,0.00019726,2]
[374317997,1753273845486,-727.6,0.00019726,2]
[374317999,1753273845496,-460.0,0.00019726,2]
[374318001,1753273845505,-1055.41,0.00019726,2]
[374318003,1753273845515,-460.0,0.00019726,2]
[374318005,1753273845525,-460.0,0.00019726,2]
[374318007,1753273845535,-460.0,0.00019726,2]
[374318009,1753273845545,-460.0,0.00019726,2]
[374318011,1753273845554,-1183.71,0.00019726,2]
[374318013,1753273845564,-460.0,0.00019726,2]
[374318015,1753273845573,-157.42474251,0.00019726,2]
[374318017,1753273845583,-460.0,0.00019726,2]
[374318019,1753273845592,-460.0,0.00019726,2]
[374318021,1753273845601,-460.0,0.00019726,2]
[374318023,1753273845611,-460.0,0.00019726,2]
[374318025,1753273845620,-3408.17,0.00019726,2]
[374318027,1753273845630,-380.0,0.00019726,2]
[374318029,1753273845639,-460.0,0.00019726,2]
[374318031,1753273845649,-532.99036941,0.00019726,2]
[374318033,1753273845660,-703.26,0.00019726,2]
[374318035,1753273845669,-460.0,0.00019726,2]
[374318037,1753273845678,-460.0,0.00019726,2]
[374318039,1753273845688,-460.0,0.00019726,2]
[374318041,1753273845697,-460.0,0.00019726,2]
[374318043,1753273845707,-460.0,0.00019726,2]
[374318045,1753273845716,-460.0,0.00019726,2]
[374318047,1753273845726,-460.0,0.00019726,2]
[374318048,1753273845735,-460.0,0.00019726,2]
[374318050,1753273845744,-460.0,0.00019726,2]
[374318052,1753273845753,-460.0,0.00019726,2]
[374318054,1753273845763,-1086.09,0.00019726,2]
[374318056,1753273845772,-460.0,0.00019726,2]
[374318058,1753273845781,-973.04,0.00019726,2]
[374318060,1753273845791,-460.0,0.00019726,2]